[Event "XTX Markets London Masters 2024"]
[Site "London"]
[Date "2024.11.30"]
[Round "2.15"]
[White "Smith, Olivia"]
[Black "Fodor, Tamas Jr."]
[Result "0-1"]
[ECO "C12"]
[WhiteElo "2129"]
[BlackElo "2518"]
[Annotator "TA"]
[PlyCount "62"]
[EventDate "2024.11.28"]
[EventType "swiss"]
[EventCountry "ENG"]
[SourceTitle "playchess.com"]
[Source "ChessBase"]
[SourceQuality "1"]
[TimeControl "40/5400+30:1800+30"]

{[%evp 21,62,-23,-22,-29,0,0,0,0,0,0,0,0,0,-55,-55,-83,-94,-85,-81,-101,-64,-109,-102,-111,-80,-117,-73,-81,-80,-79,-47,-360,-350,-332,-297,-275,-276,-506,-515,-503,-494,-967,-957]} 1. e4 {[%emt 0:00:03][%cal Be2e4,Be4e5][%mdl 32]} e6 {[%emt 0:00:12]} 2. d4 {[%emt 0:00:07]} d5 {[%emt 0:00:05]} 3. Nc3 {[%emt 0:00:09]} Nf6 {[%emt 0:00:08]} 4. Bg5 {[%emt 0:00:59]} Bb4 {[%emt 0:00:07]} 5. e5 {[%emt 0:01:33]} h6 {[%emt 0:00:07]} 6. Bd2 {[%emt 0:00:56]} Bxc3 {[%emt 0:00:12]} 7. bxc3 {[%emt 0:00:45]} Ne4 {[%emt 0:00:31]} 8. Qg4 {[%emt 0:06:37]} g6 {[%emt 0:00:45]} 9. Bd3 {[%emt 0:03:43]} Nxd2 {[%emt 0:00:39]} 10. Kxd2 {[%emt 0:00:04]} c5 {[%emt 0:00:34]} 11. Nf3 {[%emt 0:05:35]} c4 {[%emt 0:02:56]} 12. Be2 {[%emt 0:01:14]} Nc6 {[%emt 0:00:45]} 13. Rhb1 {[%emt 0:08:01]} Qe7 {[%emt 0:02:54]} 14. a4 {[%emt 0:03:35] The position is equal.} b6 {[%emt 0:00:46]} 15. h4 {[%emt 0:05:53]} Bd7 {[%emt 0:00:41]} 16. Qf4 {[%emt 0:06:42]} O-O-O {[%emt 0:01:34]} 17. a5 {[%emt 0:09:37]} Nxa5 $15 {[%emt 0:02:34]} 18. Ke1 {[%emt 0:00:29]} Nc6 {[%emt 0:01:27]} 19. Qc1 {[%emt 0:00:33]} Kc7 {[%emt 0:00:44]} 20. g3 {[%emt 0:11:27]} Rb8 {[%emt 0:01:14]} 21. Rb5 {[%emt 0:05:01]} Rb7 {[%emt 0:02:31][%cal Oc6e5]} 22. Rb2 {[%emt 0:02:10]} a5 {[%emt 0:01:54]} 23. Kf1 {[%emt 0:03:27]} h5 {[%emt 0:07:37]} 24. Ng5 {[%emt 0:03:14]} Rhb8 {[%emt 0:07:08]} 25. Qf4 {[%emt 0:00:47][%cal Oe2f3]} Be8 {[%emt 0:00:18]} 26. Bxc4 $2 {[%emt 0:09:08][%mdl 8192] [#] Now White is beyond hope.} dxc4 $19 {[%emt 0:00:10]} 27. Ne4 {[%emt 0:00:14]} Rd8 {[%emt 0:01:36]} 28. Rab1 {[%emt 0:00:55]} Rbb8 {[%emt 0:03:20]} 29. Nd2 $2 {[%emt 0:02:59] [#]} (29. Nd6) 29... Nxd4 $1 {[%emt 0:04:00] Black is clearly winning.} 30. cxd4 {[%emt 0:01:47]} c3 {[%emt 0:00:12][%csl LRb2,LRd2]} 31. d5 {[%emt 0:00:21]} (31. Ra2 $142 cxd2 32. Qxd2) 31... Rxd5 {[%emt 0:01:28] Weighted Error Value: White=0.69/Black=0.12 (very precise) .  Loses game:     	White=1     	---        Mistake:       	White=3     	---        Inaccurate:     	White=3     	Black=4      OK:         	White=5     	Black=9      Best:        	---       	Black=2} ({Weaker is} 31... cxd2 32. d6+ $17) 0-1

[Event "XTX Markets London Masters 2024"]
[Site "London"]
[Date "2024.11.30"]
[Round "2.16"]
[White "Willmoth, Robert F"]
[Black "Pert, Richard G"]
[Result "1/2-1/2"]
[ECO "A11"]
[WhiteElo "2101"]
[BlackElo "2399"]
[Annotator "TA"]
[PlyCount "56"]
[EventDate "2024.11.28"]
[EventType "swiss"]
[EventCountry "ENG"]
[SourceTitle "playchess.com"]
[Source "ChessBase"]
[SourceQuality "1"]
[TimeControl "40/5400+30:1800+30"]

{[%evp 9,56,0,6,-16,0,-24,-19,-10,-16,-29,-7,-17,-14,-22,-21,-17,-22,-38,-24,-34,-20,-44,-41,-42,-38,-47,-49,-52,0,0,0,0,0,0,0,0,0,0,0,0,0,0,0,0,0,0,0,0,12]} 1. Nf3 {[%emt 0:00:02]} d5 {[%emt 0:00:14]} 2. e3 {[%emt 0:00:05]} Nf6 {[%emt 0:00:14]} 3. c4 {[%emt 0:00:05]} c6 {[%emt 0:00:26]} 4. Nc3 {[%emt 0:00:05]} e6 {[%emt 0:00:38][%cal Be7e6,Be6e5,Be5e4][%mdl 32]} 5. Qc2 {[%emt 0:00:35]} Bd6 {[%emt 0:00:51]} 6. b3 {[%emt 0:00:52]} O-O {[%emt 0:00:25]} 7. Bb2 {[%emt 0:00:38]} e5 {[%emt 0:00:49]} 8. cxd5 {[%emt 0:00:20]} cxd5 {[%emt 0:00:07]} 9. Nb5 {[%emt 0:02:14][%cal Ob5d6] aiming for Nxd6!} Nc6 $1 {[%emt 0:02:09]} 10. Nxd6 {[%emt 0:00:23]} Qxd6 {[%emt 0:00:08]} 11. d4 {[%emt 0:08:22][%cal Rd4e5]} Nb4 {[%emt 0:02:10]} 12. Qd1 {[%emt 0:04:13]} e4 {[%emt 0:00:57]} 13. Ne5 {[%emt 0:04:13]} Ne8 {[%emt 0:01:07] Hoping for ...f6.} 14. a3 {[%emt 0:00:31]} f6 {[%emt 0:00:54]} 15. Nc4 {[%emt 0:25:47]} dxc4 {[%emt 0:01:29]} 16. axb4 {[%emt 0:01:17]} Qxb4+ {[%emt 0:11:27]} 17. Qd2 {[%emt 0:00:02]} Qxb3 {[%emt 0:01:43] ...Nd6 is the strong threat.} 18. Ra3 {[%emt 0:03:46][%cal Ba1a3,Ba3b3,Bb3b2,Bb2b7,Bb7c7][%mdl 32] [#]} c3 {[%emt 0:04:36]} 19. Rxb3 $11 {[%emt 0:06:27] The position is equal.} cxd2+ {[%emt 0:01:39]} 20. Kxd2 {[%emt 0:00:02]} Nd6 {[%emt 0:02:21] Dodges Bc4+} 21. Ba3 {[%emt 0:02:49]} Be6 {[%emt 0:12:42]} 22. Rb2 {[%emt 0:02:36]} Rfd8 {[%emt 0:00:08]} 23. Bxd6 {[%emt 0:01:10]} Rxd6 {[%emt 0:00:05]} 24. Rxb7 {[%emt 0:00:27]} Rb6 {[%emt 0:00:23]} 25. Rc7 {[%emt 0:02:19]} Rb2+ {[%emt 0:12:01]} 26. Rc2 {[%emt 0:02:12]} Rb1 {[%emt 0:00:06]} 27. Rc6 {[%emt 0:10:42]} Bf7 {[%emt 0:03:09]} 28. g4 {[%emt 0:01:47]} Rab8 {[%emt 0:11:00] Weighted Error Value: White=0.04 (flawless) /Black=0.05 (flawless) .  Mistake:       	---       	Black=1      OK:         	White=10    	Black=12     Best:        	White=3     	---        Strong:       	---       	Black=1} 1/2-1/2

[Event "XTX Markets London Masters 2024"]
[Site "London"]
[Date "2024.11.30"]
[Round "2.17"]
[White "Tanmay Chopra"]
[Black "Stone, Andrew M"]
[Result "1-0"]
[ECO "D39"]
[WhiteElo "2361"]
[BlackElo "2118"]
[Annotator "TA"]
[PlyCount "71"]
[EventDate "2024.11.28"]
[EventType "swiss"]
[EventCountry "ENG"]
[SourceTitle "playchess.com"]
[Source "ChessBase"]
[SourceQuality "1"]
[TimeControl "40/5400+30:1800+30"]

{[%evp 11,71,23,39,28,69,61,68,62,108,63,60,60,69,59,362,356,354,375,364,366,379,368,408,141,141,153,133,128,137,139,185,150,181,129,207,207,233,233,238,241,241,241,311,306,296,296,297,293,369,387,427,419,460,444,656,641,884,881,902,883,1052,842]} 1. d4 {[%emt 0:00:10]} d5 {[%emt 0:00:05]} 2. c4 {[%emt 0:00:04]} e6 {[%emt 0:00:06]} 3. Nf3 {[%emt 0:00:08]} Nf6 {[%emt 0:00:08]} 4. Nc3 {[%emt 0:00:22]} Bb4 {[%emt 0:00:09]} 5. Bg5 {[%emt 0:00:17]} dxc4 {[%emt 0:00:12]} 6. e4 {[%emt 0:00:20]} b5 {[%emt 0:00:09]} 7. a4 {[%emt 0:01:22]} (7. e5 $5 h6 8. exf6 hxg5 9. fxg7 $11) 7... h6 {[%emt 0:13:54]} 8. Bxf6 {[%emt 0:02:19]} Qxf6 {[%emt 0:00:10]} 9. axb5 {[%emt 0:01:15]} Qg6 {[%emt 0:02:21]} (9... Bb7 $14 {should be considered.}) 10. Qa4 {[%emt 0:10:10]} Bxc3+ {[%emt 0:06:43]} 11. bxc3 {[%emt 0:00:02]} Qxe4+ {[%emt 0:00:10]} 12. Be2 {[%emt 0:00:08][%cal Of3d2] Nd2! would now be deadly.} O-O $2 {[%emt 0:01:09][%mdl 8192] [#]} (12... Bb7 $14) 13. Nd2 $1 $18 {[%emt 0:02:13]} (13. Qxc4 a6 14. O-O (14. Qxc7 axb5 15. Rxa8 Qxa8 $11) 14... axb5 15. Qxb5 (15. Qxc7 Rxa1 16. Rxa1 Qxe2 $11) 15... Ba6 $14) 13... Qb7 {[%emt 0:04:36]} 14. Bf3 {[%emt 0:01:49]} (14. Qxc4 Qb6 15. Qa4 e5 $18) 14... c6 {[%emt 0:00:43]} 15. Nxc4 {[%emt 0:00:52]} a5 {[%emt 0:04:11]} 16. O-O {[%emt 0:02:44]} (16. Nxa5 Qa7 17. bxc6 Ba6 $18) 16... Ra7 {[%emt 0:02:33][%cal Oc6b5,Ba8a7,Ba7c7,Bc7c6][%mdl 32]} 17. Rfb1 $2 {[%emt 0:07:31]} (17. Bxc6 Nxc6 18. bxc6 Qe7 $18) (17. Nxa5 cxb5 18. Qb4 Qe7 $14) (17. bxc6 $18 {has better winning chances.} Qc7 18. Rfb1 (18. Nxa5 Re8 $18)) 17... cxb5 $16 {[%emt 0:07:44]} 18. Rxb5 {[%emt 0:03:01][%cal Bb1b5,Bb5c5,Bc5a5,Ba5a8,Ba8d8][%mdl 32]} (18. Nxa5 $2 Qxf3 19. Qb4 Qa8 20. Qxb5 Ba6 $19) 18... Qc7 {[%emt 0:00:50]} 19. Rc5 $1 {[%emt 0:00:22]} (19. Nxa5 $2 {loses.} Bd7 20. c4 Bxb5 21. cxb5 Qb6 $19) 19... Qd8 {[%emt 0:06:08]} 20. Rxa5 {[%emt 0:01:17] White is much more active. The black rooks are passive. Black is weak on the dark squares} Bd7 {[%emt 0:03:14]} (20... Rc7 $16 21. Qb4 Nc6 22. Bxc6 Rxc6) 21. Qa3 {[%emt 0:00:15]} Rc7 {[%emt 0:02:34]} 22. Ne5 {[%emt 0:03:33]} (22. Rc5 $18) 22... Nc6 {[%emt 0:03:54]} (22... Bc6 $16 23. Nxc6 Nxc6) 23. Ra8 $18 {[%emt 0:01:39]} Nxe5 {[%emt 0:00:05]} 24. Rxd8 {[%emt 0:02:43]} ({Don't play} 24. dxe5 $6 Bc8 $16) 24... Nxf3+ {[%emt 0:00:04]} 25. gxf3 {[%emt 0:00:03]} Rxd8 {[%emt 0:00:07] [#]} 26. Qd6 $1 {[%emt 0:17:00]} Rc6 {[%emt 0:10:38]} 27. Qe7 {[%emt 0:00:36]} Rcc8 {[%emt 0:00:12]} 28. Ra7 {[%emt 0:10:24]} Be8 {[%emt 0:00:15]} 29. f4 {[%emt 0:06:20]} g6 {[%emt 0:04:28]} 30. Rc7 {[%emt 0:04:53]} Ra8 {[%emt 0:05:56] [#]} 31. f5 $1 {[%emt 0:05:36]} exf5 {[%emt 0:01:24]} (31... gxf5 32. h3) 32. h4 {[%emt 0:00:40]} h5 {[%emt 0:06:19]} (32... Rab8 $142 33. h5 gxh5) 33. Qf6 {[%emt 0:06:30]} f4 {[%emt 0:04:22]} 34. c4 {[%emt 0:01:37]} f3 {[%emt 0:01:26]} 35. d5 {[%emt 0:00:44]} (35. Qxf3 Ra1+ 36. Kg2 Rxd4 $16) 35... Rdb8 {[%emt 0:02:35]} 36. Qxf3 {[%emt 0:00:32]} 1-0

[Event "XTX Markets London Masters 2024"]
[Site "London"]
[Date "2024.11.30"]
[Round "2.18"]
[White "Wells, Peter K"]
[Black "Patel, Zain"]
[Result "1-0"]
[ECO "E04"]
[WhiteElo "2351"]
[BlackElo "2083"]
[Annotator "TA"]
[PlyCount "97"]
[EventDate "2024.11.28"]
[EventType "swiss"]
[EventCountry "ENG"]
[SourceTitle "playchess.com"]
[Source "ChessBase"]
[SourceQuality "1"]
[TimeControl "40/5400+30:1800+30"]

{[%evp 23,97,37,16,24,24,8,8,14,7,9,3,12,10,0,0,-24,-27,-20,42,42,37,40,41,39,39,41,64,58,94,94,155,135,140,56,81,31,55,44,40,39,46,46,42,38,38,35,43,41,193,171,182,169,211,166,468,466,494,494,536,479,1293,1338,965,844,2031,2175,1664,887,2260,1931,29965,29959,29976,29977,29955,29940]} 1. d4 {[%emt 0:00:16]} Nf6 {[%emt 0:01:17]} 2. Nf3 {[%emt 0:00:42]} e6 {[%emt 0:02:11]} 3. c4 {[%emt 0:00:43]} d5 {[%emt 0:02:02]} 4. g3 {[%emt 0:00:51]} dxc4 {[%emt 0:01:40]} 5. Bg2 {[%emt 0:00:21]} c5 {[%emt 0:00:59]} 6. O-O {[%emt 0:01:25]} Nc6 {[%emt 0:00:40]} 7. dxc5 {[%emt 0:02:49]} Qxd1 {[%emt 0:03:08]} 8. Rxd1 {[%emt 0:00:06]} Bxc5 {[%emt 0:00:30]} 9. Nbd2 {[%emt 0:00:39]} c3 {[%emt 0:00:08]} 10. bxc3 {[%emt 0:00:05][%cal Bb2c3,Bc3c4][%mdl 32]} O-O {[%emt 0:01:33]} 11. Nb3 {[%emt 0:00:29]} Be7 {[%emt 0:01:16]} 12. c4 {[%emt 0:03:00]} Bd7 {[%emt 0:04:26]} 13. Bb2 {[%emt 0:02:58]} Rfc8 {[%emt 0:03:53][%cal Bf8c8,Bc8c4,Bc4a4,Ba4a6][%mdl 32]} 14. Rab1 {[%emt 0:32:24] [#] Bxf6 would now be deadly.} Be8 {[%emt 0:06:12]} 15. Nfd4 {[%emt 0:14:35] The position is equal.} Nxd4 {[%emt 0:09:15]} 16. Bxd4 {[%emt 0:00:26]} Rxc4 {[%emt 0:08:13]} 17. Bxb7 {[%emt 0:15:41]} Rd8 {[%emt 0:04:31]} 18. Bf3 {[%emt 0:06:19]} Ra4 {[%emt 0:03:23]} 19. Bxf6 {[%emt 0:05:55]} Rxd1+ {[%emt 0:03:33]} (19... gxf6 $6 20. Rxd8 Bxd8 21. Nc5 $16) 20. Rxd1 {[%emt 0:00:03]} Bxf6 {[%emt 0:00:29]} (20... gxf6 $11 21. Rd2 Rc4) 21. Rc1 $1 $14 {[%emt 0:00:16] And now Rc8 would win.} Kf8 {[%emt 0:04:29]} (21... Rxa2 $2 22. Rc8 g6 (22... Kf8 $2 23. Bc6 $18) 23. Rxe8+ $18) 22. Rc8 $1 {[%emt 0:00:30]} Ra6 {[%emt 0:01:02][%cal Of8e7] Inhibits Bc6.} (22... Rxa2 $2 23. Bc6 g6 24. Bxe8 $18 (24. Rxe8+ Kg7 $18)) 23. Nc5 {[%emt 0:00:54]} Rd6 {[%emt 0:00:58]} (23... Rxa2 $2 24. Bc6 Ke7 25. Bxe8 $18) 24. Ra8 {[%emt 0:06:13]} Bd4 {[%emt 0:03:18]} 25. Nb7 {[%emt 0:01:10]} Ra6 {[%emt 0:01:01][%cal Of8e7]} 26. e3 {[%emt 0:00:32]} Bf6 {[%emt 0:09:55]} (26... Be5 $142) 27. Nc5 $16 {[%emt 0:00:14]} Rd6 {[%emt 0:00:33] [#]} (27... Rxa2 $2 28. Bc6 Ke7 (28... Ra1+ $2 29. Kg2 $18) 29. Bxe8 $18 (29. Rxe8+ Kd6 $18)) 28. Rxa7 {[%emt 0:00:23]} (28. Ne4 $1 $16 {[%cal Re4d6]} Ra6 29. Nc5) 28... Rd8 {[%emt 0:02:15]} 29. Ra8 {[%emt 0:04:24] White is much more active.} (29. a4 $16) 29... Ke7 {[%emt 0:04:00]} 30. Rxd8 {[%emt 0:00:30]} Kxd8 $14 {[%emt 0:00:05][%mdl 4096] Endgame. KBB-KBN} 31. Be4 {[%emt 0:00:30]} Be7 {[%emt 0:00:51]} 32. Nb3 {[%emt 0:00:00]} Kc7 {[%emt 0:02:05]} 33. f4 {[%emt 0:00:42]} h6 {[%emt 0:01:08]} 34. Kf2 {[%emt 0:00:28]} Kb6 {[%emt 0:00:14]} 35. Bd3 {[%emt 0:00:36]} Bb5 $2 {[%emt 0:03:45] This move loses the game for Black.} (35... Kc7 $14) 36. Bxb5 $18 {[%emt 0:00:41]} Kxb5 {[%emt 0:00:04] KB-KN} 37. Ke2 {[%emt 0:00:05]} Kb4 {[%emt 0:00:46]} 38. Nd4 {[%emt 0:00:29] Nc6+ is the strong threat.} Ka3 $2 {[%emt 0:00:37]} (38... Kc5 {is a better chance.} 39. Kd3 Bf6) 39. Nc6 {[%emt 0:00:10]} Bf6 {[%emt 0:01:12]} 40. e4 {[%emt 0:00:19][%cal Be3e4,Be4e5][%mdl 32] Dodges g6} Bc3 {[%emt 0:02:24]} 41. Nd8 {[%emt 0:32:07]} Kxa2 {[%emt 0:32:31]} (41... Kb4 $142 42. Nxf7 Bf6) 42. Nxf7 {[%emt 0:00:00]} Kb3 {[%emt 0:00:00]} 43. Kd3 {[%emt 0:00:00]} Bf6 {[%emt 0:00:00] Prevents Nd8} 44. e5 {[%emt 0:00:00]} Be7 {[%emt 0:00:00]} 45. Nd6 {[%emt 0:00:00] Strongly threatening f5.} Kb4 {[%emt 0:00:00]} 46. Ne8 {[%emt 0:00:00]} g5 {[%emt 0:00:00]} 47. Ng7 {[%emt 0:00:00] White mates.} gxf4 {[%emt 0:00:00]} 48. gxf4 {[%emt 0:00:00]} Kc5 {[%emt 0:00:00]} 49. Ke4 {[%emt 0:00:00] Weighted Error Value: White=0.09 (flawless) /Black=0.48.  Mistake:       	White=2     	Black=5      Inaccurate:     	---       	Black=1      OK:         	White=9     	Black=8      Best:        	White=5     	Black=1      Strong:       	White=2     	---} 1-0

[Event "XTX Markets London Masters 2024"]
[Site "London"]
[Date "2024.11.30"]
[Round "2.19"]
[White "Pert, Max"]
[Black "Petrov, Vladimir Sergeev"]
[Result "1-0"]
[ECO "A47"]
[WhiteElo "2076"]
[BlackElo "2349"]
[Annotator "TA"]
[PlyCount "91"]
[EventDate "2024.11.28"]
[EventType "swiss"]
[EventCountry "ENG"]
[SourceTitle "playchess.com"]
[Source "ChessBase"]
[SourceQuality "1"]
[TimeControl "40/5400+30:1800+30"]

{[%evp 9,91,-2,7,10,21,16,56,57,68,61,66,51,60,73,129,129,135,131,153,78,81,84,275,189,206,191,179,103,81,79,79,86,88,87,91,40,112,54,77,74,77,70,114,109,144,150,139,152,192,230,237,217,315,314,288,283,275,210,276,267,355,334,400,356,436,412,395,392,663,664,678,343,333,337,760,751,727,755,767,755,920,904,29997,29998]} 1. d4 {[%emt 0:00:05]} Nf6 {[%emt 0:00:04]} 2. Nf3 {[%emt 0:00:42]} e6 {[%emt 0:00:07]} 3. Bf4 {[%emt 0:00:43]} b6 {[%emt 0:02:32]} 4. e3 {[%emt 0:00:56]} Bb7 {[%emt 0:00:04]} 5. Nbd2 {[%emt 0:00:53]} h6 {[%emt 0:02:31]} 6. h3 {[%emt 0:01:16]} d6 {[%emt 0:00:44]} 7. Bd3 {[%emt 0:04:18]} g5 {[%emt 0:01:44]} 8. Bh2 {[%emt 0:05:09] White is slightly better.} Nbd7 {[%emt 0:02:13]} 9. Qe2 {[%emt 0:04:01]} Qe7 {[%emt 0:08:34]} 10. e4 {[%emt 0:03:37]} Bg7 {[%emt 0:00:07]} 11. O-O-O {[%emt 0:02:34]} g4 {[%emt 0:02:05]} (11... O-O-O $142) 12. hxg4 $16 {[%emt 0:03:28]} Nxg4 {[%emt 0:00:05]} 13. Bg3 {[%emt 0:01:17]} h5 {[%emt 0:02:17]} 14. e5 {[%emt 0:04:52]} (14. Kb1 $142) 14... dxe5 {[%emt 0:33:17]} 15. dxe5 {[%emt 0:01:11]} f5 $2 {[%emt 0:18:20]} (15... O-O-O $16) 16. exf6 {[%emt 0:06:02]} Qxf6 {[%emt 0:00:08][%csl Gg7][%cal Rf6b2]} 17. c3 $1 {[%emt 0:00:32]} (17. Bxc7 $2 Qxb2#) 17... Nc5 {[%emt 0:03:17]} 18. Bh4 {[%emt 0:03:31]} (18. Bxc7 Nxd3+ 19. Qxd3 Qf5 20. Qxf5 exf5 $16) (18. Bb5+ $18 Kf7 19. Bc4 (19. Bxc7 Rac8 $18)) 18... Nxd3+ {[%emt 0:01:39]} 19. Qxd3 {[%emt 0:00:41]} Qf5 {[%emt 0:00:11]} 20. Qxf5 {[%emt 0:00:50]} exf5 {[%emt 0:00:05]} 21. Rhe1+ {[%emt 0:00:54]} Kf8 {[%emt 0:02:59]} 22. Ng5 {[%emt 0:11:13]} (22. Re7 $16) 22... Bh6 {[%emt 0:06:23] [#]} (22... Re8 $14) 23. Re2 {[%emt 0:04:41]} (23. Ne6+ $1 $16 Kg8 24. Nxc7) 23... Re8 {[%emt 0:02:44]} 24. Rxe8+ {[%emt 0:02:49] White stays focused until the end.} Kxe8 {[%emt 0:00:03][%cal Bf8e8,Be8d7,Bd7c8][%mdl 32]} 25. Re1+ {[%emt 0:00:36]} Kd7 {[%emt 0:01:27][%cal Og4f2] [#]} 26. f3 {[%emt 0:01:10]} Nf2 {[%emt 0:04:54]} 27. Kc2 {[%emt 0:01:18] Prevents Nd3} Bxg5 {[%emt 0:04:04]} 28. Bxg5 {[%emt 0:00:07] Re7+ would now be deadly.} Rg8 {[%emt 0:01:14]} 29. Re7+ {[%emt 0:01:33]} Kc8 {[%emt 0:00:28]} 30. Bf4 {[%emt 0:00:15]} Ba6 {[%emt 0:00:12]} (30... Kd8 {is a better defense.} 31. Rxc7 Ba6) 31. Rxc7+ $18 {[%emt 0:00:55]} Kd8 {[%emt 0:00:00]} 32. c4 {[%emt 0:01:10][%cal Bc3c4,Bc4c5][%mdl 32]} (32. Rxa7 Bd3+ 33. Kb3 Rxg2 $16) 32... Rxg2 {[%emt 0:00:22]} 33. Rxa7 {[%emt 0:00:13]} Bc8 {[%emt 0:01:18]} 34. Rh7 {[%emt 0:01:03]} Be6 {[%emt 0:00:44]} 35. Bc7+ {[%emt 0:01:11]} (35. Rxh5 Bd7 36. Rh6 Be8 $18) 35... Ke8 {[%emt 0:00:12]} 36. Bxb6 {[%emt 0:00:20]} Bf7 {[%emt 0:00:12]} 37. c5 {[%emt 0:01:16]} f4 {[%emt 0:00:51] And now ...Bg6+ would win.} 38. Rh8+ {[%emt 0:01:14]} Kd7 $2 {[%emt 0:00:00]} (38... Rg8) 39. Rd8+ {[%emt 0:02:16]} Kc6 {[%emt 0:00:03]} 40. Rd6+ {[%emt 0:11:29]} Kb5 {[%emt 0:00:07][%cal Oh5h4]} 41. Rf6 {[%emt 0:33:19]} (41. a4+ Kxa4 42. c6 Bg6+ 43. Rxg6 (43. Kc3 Nd1+ 44. Kc4 Nxb2+ 45. Kc5 Nd3+ 46. Kd5 Rxd2 $11) 43... Rxg6 44. Bxf2 Rxc6+ 45. Kd3 Rc1 $18) 41... Bg6+ {[%emt 0:10:29]} (41... Bg8 42. Ba7 (42. Rxf4 Bxa2 43. Rf6 Bg8 $16) 42... Bh7+ 43. Kb3 Bg8+ 44. Ka3 Nd3) 42. Kb3 {[%emt 0:00:00]} Nd3 {[%emt 0:02:31]} 43. a4+ {[%emt 0:00:00]} Ka6 {[%emt 0:00:02]} 44. Nc4 {[%emt 0:00:00]} Nc1+ {[%emt 0:14:52]} 45. Ka3 {[%emt 0:00:00]} Bd3 {[%emt 0:03:33] [#]} 46. Rf7 $1 {[%emt 0:00:00] Weighted Error Value: White=0.29 (precise) /Black=0.44.  Loses game:     	---       	Black=1      Mistake:       	White=4     	Black=5      Inaccurate:     	White=1     	Black=5      OK:         	White=17    	Black=9      Best:        	White=5     	Black=4      Strong:       	White=1     	---} 1-0

[Event "XTX Markets London Masters 2024"]
[Site "London"]
[Date "2024.11.30"]
[Round "2.20"]
[White "Hill, Alistair"]
[Black "Fava, Lorenzo"]
[Result "1/2-1/2"]
[ECO "A25"]
[WhiteElo "2076"]
[BlackElo "2300"]
[Annotator "RC"]
[PlyCount "69"]
[EventDate "2024.11.28"]
[EventType "swiss"]
[EventCountry "ENG"]
[SourceTitle "playchess.com"]
[Source "ChessBase"]
[SourceQuality "1"]
[TimeControl "40/5400+30:1800+30"]

1. c4 {[%emt 0:06:29]} g6 {[%emt 0:00:13]} 2. d4 {[%emt 0:00:51]} Bg7 {[%emt 0:00:05]} 3. Nf3 {[%emt 0:00:21]} d6 {[%emt 0:00:06]} 4. Nc3 {[%emt 0:00:20]} Nc6 {[%emt 0:02:07]} 5. e3 {[%emt 0:04:02]} e5 {[%emt 0:00:10]} 6. Be2 {[%emt 0:02:48]} exd4 {[%emt 0:00:56]} 7. exd4 {[%emt 0:00:55]} Nge7 {[%emt 0:00:03]} 8. d5 {[%emt 0:05:53]} Ne5 {[%emt 0:00:34]} 9. Bg5 {[%emt 0:06:37]} h6 {[%emt 0:00:30]} 10. Bf4 {[%emt 0:00:28]} O-O {[%emt 0:00:31]} 11. Nd4 {[%emt 0:05:56]} c5 {[%emt 0:10:19]} 12. dxc6 {[%emt 0:00:32]} bxc6 {[%emt 0:00:04]} 13. O-O {[%emt 0:02:17]} Rb8 {[%emt 0:05:49]} 14. b3 {[%emt 0:05:45]} a6 {[%emt 0:07:33]} 15. Rc1 {[%emt 0:01:57]} c5 {[%emt 0:06:49]} 16. Nf3 {[%emt 0:01:43]} Qc7 {[%emt 0:01:36]} 17. Qd2 {[%emt 0:05:35]} g5 {[%emt 0:02:10]} 18. Nxe5 {[%emt 0:08:23]} dxe5 {[%emt 0:01:24]} 19. Be3 {[%emt 0:00:05]} Nf5 {[%emt 0:14:01]} 20. Nd5 {[%emt 0:01:42]} Qd6 {[%emt 0:00:03]} 21. Bd3 {[%emt 0:07:57]} Nd4 {[%emt 0:03:46]} 22. Rfe1 {[%emt 0:04:23]} f5 {[%emt 0:02:30]} 23. Bxd4 {[%emt 0:02:29]} exd4 {[%emt 0:03:41]} 24. Re2 {[%emt 0:04:32]} Bd7 {[%emt 0:08:17]} 25. Rce1 {[%emt 0:00:15]} Rf7 {[%emt 0:00:10]} 26. Qa5 {[%emt 0:03:57]} Kh8 {[%emt 0:04:00]} 27. Re7 {[%emt 0:06:50]} Rxe7 {[%emt 0:09:45]} 28. Rxe7 {[%emt 0:00:05]} Be5 {[%emt 0:00:19]} 29. g3 {[%emt 0:02:23]} Rf8 {[%emt 0:04:54]} 30. Qb6 {[%emt 0:03:17]} Bc8 {[%emt 0:01:14]} 31. Rxe5 {[%emt 0:03:39]} Qxe5 {[%emt 0:00:04]} 32. Qxh6+ {[%emt 0:00:07]} Kg8 {[%emt 0:00:01]} 33. Qg6+ {[%emt 0:00:31]} Kh8 {[%emt 0:00:50]} 34. Qh6+ {[%emt 0:00:45]} Kg8 {[%emt 0:00:01]} 35. Qg6+ {[%emt 0:00:08]} 1/2-1/2